bitfinex/quotes_ETHUSD_20250725
["timestamp","ask_amount","ask_price","bid_price","bid_amount"]
[1753407724666,0.55,3674.5,3674.1,0.001]
[1753407724855,1.4925,3674.4,3674.3,3.0]
[1753407725176,0.55,3674.3,3674.2,0.136]
[1753407726454,1.0019,3674.3,3674.2,0.136]
[1753407726642,1.4925,3674.3,3674.1,0.001]
[1753407726842,1.4925,3674.2,3674.1,0.001]
[1753407727283,1.0019,3674.2,3674.1,0.001]
[1753407727658,0.55,3674.2,3674.1,0.001]
[1753407727886,0.55,3674.2,3674.1,0.4862]
[1753407728380,0.55,3674.2,3674.1,3.20795498]
[1753407728547,0.002,3674.6,3674.3,2.72160683]
[1753407728748,0.4539,3674.6,3674.2,4.431]
[1753407728948,0.002,3674.6,3674.3,0.4852]
[1753407729756,0.002,3674.9,3674.8,2.72123652]
[1753407729989,0.002,3674.9,3674.8,12.92775668]
[1753407730755,0.002,3674.9,3674.8,8.49775668]
[1753407731009,0.002,3674.9,3674.8,12.92775668]
[1753407731494,0.002,3674.9,3674.8,7.43]
[1753407733615,0.552,3674.9,3674.8,3.0]
[1753407733814,0.552,3674.9,3674.8,7.9142]
[1753407733983,0.552,3674.9,3674.8,3.0]
[1753407734396,0.552,3674.9,3674.8,7.428]
[1753407735013,0.552,3674.9,3674.8,10.14923652]
[1753407735225,0.552,3674.9,3674.8,16.77090651]
[1753407735532,0.552,3674.9,3674.8,11.97002594]
[1753407736592,0.552,3674.9,3674.8,12.10602594]
[1753407736793,0.552,3674.9,3674.8,9.38478942]
[1753407737006,0.552,3674.9,3674.8,12.10602594]
[1753407738239,0.552,3674.9,3674.8,3.136]
[1753407738432,0.552,3674.9,3674.8,7.427]
[1753407738740,0.552,3674.9,3674.8,7.8807]
[1753407738938,0.552,3674.9,3674.8,15.40281709]
[1753407739146,0.552,3674.9,3674.8,15.83451709]
[1753407739336,0.552,3674.9,3674.8,17.7037069]
[1753407739632,0.552,3674.9,3674.8,18.2060069]
[1753407740893,0.002,3675.6,3674.8,18.2060069]
[1753407741094,0.002,3675.6,3675.5,10.52159883]
[1753407741294,0.002,3675.6,3675.5,15.08259883]
[1753407741507,0.002,3675.6,3675.5,16.86293954]
[1753407741693,0.002,3675.6,3675.5,18.25063954]
[1753407742493,0.7866,3676.4,3676.3,3.22242621]
[1753407742494,0.002,3676.4,3676.3,3.22242621]
[1753407742693,0.002,3676.4,3676.3,16.46870678]
[1753407742971,0.002,3676.4,3676.3,18.38759908]
[1753407743924,0.002,3676.4,3676.3,8.73101851]
[1753407744101,0.002,3676.4,3676.3,11.23612621]
[1753407744303,0.002,3676.4,3676.3,11.66782621]
[1753407745500,0.002,3676.4,3676.3,7.24382621]
[1753407745837,0.002,3676.4,3676.3,11.66682621]
[1753407748536,0.002,3676.4,3676.3,11.23312621]
[1753407748723,0.002,3676.4,3676.3,13.10855131]
[1753407749128,0.002,3676.4,3676.3,12.65485131]
[1753407749324,0.002,3676.4,3676.3,13.10855131]
[1753407749915,0.002,3676.4,3676.3,13.53925131]
[1753407750804,0.002,3676.4,3676.3,9.11925131]
[1753407751004,0.002,3676.4,3676.3,18.34013188]
[1753407752332,0.002,3676.4,3676.3,17.90843188]
[1753407753360,0.002,3676.4,3676.3,18.34013188]
[1753407757306,0.7846,3677.7,3676.4,3.0]
[1753407757506,0.002,3677.9,3677.6,0.136]
[1753407757712,0.002,3677.9,3677.8,0.136]
[1753407757933,0.552,3677.9,3677.8,4.552]
[1753407758139,0.9818,3677.9,3677.8,4.552]
[1753407758321,0.002,3677.9,3677.8,12.55278753]
[1753407758522,0.002,3677.9,3677.8,12.52559737]
[1753407758721,0.002,3677.9,3677.8,16.68977253]
[1753407759457,0.002,3677.9,3677.8,17.14347253]
[1753407761557,0.002,3677.9,3677.8,17.57517253]
[1753407763711,0.002,3677.9,3677.8,18.07747253]
[1753407764543,0.002,3678.1,3678.0,2.71886895]
[1753407764760,0.002,3678.1,3678.0,12.85814939]
[1753407765064,0.002,3678.1,3678.0,13.85236071]
[1753407766255,0.002,3678.1,3678.0,14.35466071]
[1753407768054,0.002,3678.9,3678.8,7.51915826]
[1753407768249,0.002,3678.9,3678.8,11.92915826]
[1753407768552,0.002,3678.9,3678.8,13.52991076]
[1753407768754,2.2335,3678.9,3678.8,4.546]
[1753407769047,1.7594,3678.9,3678.8,4.546]
[1753407769353,0.552,3678.9,3678.8,7.26427769]
[1753407770518,0.002,3678.9,3678.8,10.26427769]
[1753407770825,0.002,3678.9,3678.8,13.02826374]
[1753407772555,0.002,3679.4,3679.3,2.71790829]
[1753407772851,0.002,3679.4,3679.3,14.95296794]
[1753407773075,0.002,3679.4,3679.3,15.06178886]
[1753407773272,0.002,3679.4,3679.3,15.52278886]
[1753407773440,0.002,3679.4,3679.3,17.34686734]
[1753407773777,0.002,3679.4,3679.3,18.32356734]
[1753407774071,0.002,3679.4,3679.3,12.47886734]
[1753407774270,0.002,3679.4,3679.3,17.34686734]
[1753407775175,0.002,3679.4,3679.3,16.88486734]
[1753407776384,0.002,3679.4,3679.3,3.136]
[1753407776594,1.4618,3679.4,3679.3,7.542]
[1753407776787,0.552,3679.4,3679.3,5.85390829]
[1753407777078,0.002,3679.4,3679.3,15.05978886]
[1753407777287,0.002,3679.4,3679.3,15.52078886]
[1753407777435,0.002,3679.4,3679.3,17.34466449]
[1753407777837,0.002,3679.4,3679.3,17.81906449]
[1753407778267,0.002,3680.1,3680.0,10.51827187]
[1753407778458,0.002,3680.1,3680.0,14.92227187]
[1753407778654,0.002,3680.1,3680.0,15.05827187]
[1753407778984,0.002,3680.1,3680.0,17.79914718]
[1753407779142,0.002,3680.1,3680.0,18.27354718]
[1753407780180,1e-08,3680.1,3680.0,18.27354718]
[1753407781550,0.2515,3680.6,3680.5,2.71702214]
[1753407781750,0.2515,3680.6,3680.5,12.44937293]
[1753407782008,0.8015,3680.6,3680.5,9.67285125]
[1753407782148,0.2515,3680.6,3680.5,7.71602214]
[1753407782349,1.0424,3680.6,3680.5,0.136]
[1753407782654,2.5022,3680.6,3680.5,7.25502214]
[1753407782864,2.5022,3680.6,3680.5,4.538]
[1753407783162,1.5924,3680.6,3680.5,0.136]
[1753407783361,2.5022,3680.6,3680.5,4.537]
[1753407783765,2.5022,3680.6,3680.5,0.136]
[1753407784494,0.8015,3680.6,3680.5,0.16317022]
[1753407784677,0.8015,3680.6,3680.5,3.78952722]
[1753407785285,0.8015,3680.6,3680.5,0.136]
[1753407785286,1.7113,3680.6,3680.5,0.136]
[1753407785649,1.7113,3680.6,3680.5,4.536]
[1753407785891,1.7113,3680.6,3680.5,0.136]
[1753407786063,1.7113,3680.6,3680.5,7.25302214]
[1753407786466,1.2372,3680.6,3680.5,7.25302214]
[1753407786693,0.8015,3680.6,3680.5,11.25004125]
[1753407787191,0.55,3680.5,3679.6,2.71762483]
[1753407787392,0.55,3680.5,3679.4,2.71782169]
[1753407787393,1.4598,3680.5,3679.4,2.71782169]
[1753407787590,0.9857,3680.5,3680.4,0.136]
[1753407787777,0.55,3680.5,3680.4,7.25209596]
[1753407788169,0.9098,3680.5,3680.4,0.136]
[1753407788357,2.2404,3680.5,3680.4,0.136]
[1753407788555,0.55,3680.4,3680.2,0.136]
[1753407788757,1.4598,3680.4,3680.3,4.399]
[1753407789274,1.3078,3680.2,3680.0,4.399]
[1753407789797,1.4598,3680.1,3680.0,4.399]
[1753407791581,0.55,3680.0,3679.9,0.136]
[1753407791896,1.4598,3680.0,3679.9,0.136]
[1753407792097,1.4598,3680.0,3678.9,5.27761023]
[1753407792302,0.55,3679.8,3679.7,0.136]
[1753407792599,1.4598,3679.8,3679.7,0.136]
[1753407794207,4.17733899,3679.8,3679.7,0.136]
[1753407794477,0.55,3679.6,3679.3,0.136]
[1753407794586,0.55,3679.4,3678.9,7.25114935]
[1753407794897,0.55,3679.2,3679.1,2.71805604]
[1753407795060,0.55,3679.6,3679.1,4.994]
[1753407795257,0.55,3679.4,3679.1,4.397]
[1753407795477,0.55,3679.6,3679.2,2.71793243]
[1753407795690,1.0407,3679.6,3679.5,0.136]
[1753407795894,1.5035,3679.6,3679.5,0.136]
[1753407796703,0.55,3679.4,3679.2,0.136]
[1753407796899,0.55,3679.4,3679.0,4.396]
[1753407796900,0.55,3679.1,3679.0,4.396]
[1753407797289,1.5035,3679.1,3679.0,4.396]
[1753407797898,1.5035,3679.1,3678.9,4.396]
[1753407798060,1.5035,3679.0,3678.9,4.396]
[1753407798262,0.55,3678.9,3678.8,0.136]
[1753407798458,1.5035,3678.9,3678.8,4.531]
[1753407799157,1.5035,3678.9,3678.8,0.136]
[1753407802700,1.5035,3678.9,3678.8,2.85427769]
[1753407802905,1.5035,3678.9,3678.8,0.136]
[1753407804082,1.5035,3678.9,3678.8,2.85427769]
[1753407804281,0.55,3679.2,3678.9,2.71820284]
[1753407804488,1.5035,3679.2,3678.9,2.71820284]
[1753407804802,0.55,3679.0,3678.9,2.71820284]
[1753407805111,0.7756,3679.7,3679.5,2.71773669]
[1753407805410,0.55,3679.6,3679.5,2.85373669]
[1753407805775,0.4628,3679.8,3679.6,2.7176234]
[1753407805981,0.9535,3679.8,3679.5,0.136]
[1753407806611,0.9535,3679.8,3679.5,2.71776018]
[1753407806771,0.9535,3679.8,3679.7,0.136]
[1753407806969,0.7756,3680.0,3679.7,2.85361284]
[1753407807196,0.7756,3680.3,3679.8,9.93304718]
[1753407807501,1.0271,3680.6,3680.2,2.71722686]
[1753407807707,0.4907,3680.5,3680.3,2.71715138]
[1753407808119,0.4907,3680.5,3680.4,2.71709596]
[1753407808272,1.0407,3680.5,3680.4,2.71709596]
[1753407808470,0.4907,3680.5,3680.4,2.71709596]
[1753407808785,0.55,3680.5,3680.2,0.136]
[1753407809104,0.4628,3680.4,3680.2,0.136]
[1753407809267,0.55,3680.3,3680.2,0.136]
[1753407809468,1.5035,3680.3,3680.0,4.392]
[1753407809768,0.55,3679.9,3679.5,4.392]
[1753407809981,0.55,3679.7,3679.6,3.136]
[1753407810266,1.1488,3680.3,3679.8,0.136]
[1753407810472,0.55,3680.1,3679.8,0.136]
[1753407810673,1.3317,3679.9,3679.8,0.136]
[1753407810868,1.3317,3679.9,3679.1,0.001]
[1753407810869,2.2852,3679.9,3679.5,0.136]
[1753407811110,0.55,3679.7,3679.4,0.136]
[1753407811270,0.686,3679.7,3679.2,0.136]
[1753407811470,0.55,3679.5,3679.2,0.136]
[1753407811671,0.55,3679.3,3679.1,0.137]
[1753407811975,1.5035,3679.2,3679.1,0.001]
[1753407813421,0.55,3679.2,3679.1,0.001]
[1753407814006,0.55,3679.2,3679.1,3.00456696]
[1753407814211,0.7864,3679.7,3679.1,0.75191092]
[1753407814370,0.7864,3680.1,3679.2,3.4654]
[1753407814574,0.7864,3680.1,3679.6,0.136]
[1753407814773,0.4907,3680.0,3679.6,2.7176238]
[1753407815097,0.55,3679.9,3679.6,2.7176238]
[1753407815295,0.55,3679.9,3679.5,4.39]
[1753407815494,0.8913,3680.5,3680.1,2.71724522]
[1753407815844,0.2515,3680.6,3680.0,3.02717391]
[1753407816127,0.2515,3680.6,3679.9,4.389]
[1753407816128,0.55,3680.3,3679.9,4.389]
[1753407816472,0.2515,3680.6,3680.4,2.71709596]
[1753407816691,0.2515,3680.6,3680.5,2.71702214]
[1753407816891,0.55,3680.3,3680.0,2.7173913]
[1753407817068,0.55,3680.3,3680.0,2.8533913]
[1753407817279,0.55,3680.3,3680.2,2.71724362]
[1753407817484,0.2515,3680.6,3680.5,2.71702214]
[1753407817669,0.8015,3680.6,3680.5,2.71702214]
[1753407817874,0.8015,3680.6,3680.5,3.31842214]
[1753407818111,0.8015,3680.6,3680.5,2.85302214]
[1753407818423,0.8015,3680.6,3680.5,0.136]
[1753407818574,0.8015,3680.6,3680.3,4.388]
[1753407818575,0.55,3680.5,3680.3,7.10516101]
[1753407818775,1.5035,3680.5,3680.4,0.136]
[1753407819031,2.3334,3680.5,3680.0,2.71737936]
[1753407819185,0.2515,3680.6,3680.5,2.71702214]
[1753407819395,0.2515,3680.6,3680.5,3.18242214]
[1753407819617,0.2515,3680.6,3680.5,3.63849236]
[1753407820022,0.2515,3680.6,3680.5,6.63849236]
[1753407820178,1e-08,3681.0,3680.9,3.21902688]
[1753407820379,1e-08,3681.0,3680.9,10.63319414]
[1753407820616,1e-08,3681.0,3680.9,11.50032688]
[1753407821199,1e-08,3681.0,3680.9,6.68442688]
[1753407821401,1e-08,3681.0,3680.9,11.07142688]
[1753407821621,1e-08,3681.0,3680.9,12.49314141]
[1753407822214,1e-08,3681.0,3680.9,12.92204141]
[1753407824184,1e-08,3681.0,3680.9,11.98984141]
[1753407824522,1e-08,3681.0,3680.9,7.13844141]
[1753407824722,1e-08,3681.0,3680.9,11.98884141]
[1753407824921,1e-08,3681.0,3680.9,12.41774141]
[1753407825432,1e-08,3681.0,3680.9,11.98884141]
[1753407826846,1e-08,3681.0,3680.9,7.13844141]
[1753407826994,1e-08,3681.0,3680.9,7.384]
[1753407827425,0.55000001,3681.0,3680.9,3.0]
[1753407827752,0.55000001,3681.0,3680.9,10.10072688]
[1753407827898,0.55000001,3681.0,3680.9,7.384]
[1753407828221,0.55000001,3681.0,3680.9,10.10072688]
[1753407828542,1.49770001,3681.0,3680.9,3.0]
[1753407828702,0.55000001,3681.0,3680.9,7.384]
[1753407829232,0.55000001,3681.0,3680.9,3.0]
[1753407829419,0.55000001,3681.0,3680.9,5.71672688]
[1753407829620,1e-08,3681.0,3680.9,5.71672688]
[1753407830141,1e-08,3681.0,3680.9,7.49148693]
[1753407831516,1e-08,3681.0,3680.9,7.99478693]
[1753407831953,1e-08,3681.0,3680.9,8.46648693]
[1753407834461,1e-08,3681.0,3680.9,12.84848693]
[1753407834855,1e-08,3681.0,3680.9,8.46648693]
[1753407835458,1e-08,3681.0,3680.9,12.84748693]
[1753407836565,1e-08,3681.0,3680.9,8.46648693]
[1753407836724,1e-08,3681.0,3680.9,12.84748693]
[1753407839485,1e-08,3681.0,3680.9,12.84648693]
[1753407841258,1e-08,3681.0,3680.9,7.51528693]
[1753407841473,1e-08,3681.0,3680.9,12.84448693]
[1753407843043,1e-08,3681.0,3680.9,7.99478693]
[1753407843245,1e-08,3681.0,3680.9,12.37278693]
[1753407843598,1e-08,3681.0,3680.9,12.84448693]
[1753407844680,1e-08,3681.0,3680.9,7.99478693]
[1753407844869,1e-08,3681.0,3680.9,11.89228693]
[1753407845042,1e-08,3681.0,3680.9,12.37178693]
[1753407845244,1e-08,3681.0,3680.9,12.84348693]
[1753407846150,0.002,3681.7,3681.6,2.71621034]
[1753407846377,0.002,3681.7,3681.6,10.50083137]
[1753407846675,0.002,3681.7,3681.6,10.98033137]
[1753407847553,0.002,3681.7,3681.6,10.50083137]
[1753407847758,1.4997,3681.7,3681.6,10.22921034]
[1753407847983,0.552,3681.7,3681.6,10.22921034]
[1753407848718,0.552,3681.7,3681.6,3.136]
[1753407848866,2.25,3681.7,3681.6,7.512]
[1753407849066,1.7679,3681.7,3681.6,7.512]
[1753407849266,2.25,3681.7,3681.6,10.22821034]
[1753407849518,0.552,3681.7,3681.6,11.52266594]
[1753407849965,0.002,3681.7,3681.6,7.14666594]
[1753407850164,1.4997,3681.7,3681.6,3.136]
[1753407850405,1.4997,3681.7,3681.6,7.511]
[1753407850789,1.4997,3681.7,3680.9,0.9828]
[1753407850790,0.55,3681.6,3681.2,3.0]
[1753407851104,0.55,3681.0,3680.9,0.001]
[1753407851465,2.2919,3681.0,3680.9,0.137]
[1753407851890,5.00855308,3681.0,3680.9,0.001]
[1753407852087,2.2919,3681.0,3680.9,0.001]
[1753407852500,5.00855308,3681.0,3680.9,0.001]
[1753407852673,5.14455308,3681.0,3680.9,0.001]
[1753407854678,5.14455308,3681.0,3680.1,0.001]
[1753407854679,1.3627,3680.2,3680.1,0.001]
[1753407855115,0.55,3680.2,3680.1,2.85431746]
[1753407855287,0.55,3680.2,3680.1,1.17639345]
[1753407855613,2.71622087,3681.6,3680.2,2.71718898]
[1753407855816,0.8127,3681.0,3680.9,2.71672688]
[1753407855976,0.4717,3681.2,3681.1,2.71657928]
[1753407856176,0.8147,3681.7,3681.1,0.51446579]
[1753407856416,0.8147,3681.7,3681.6,2.71621034]
[1753407856617,0.002,3681.7,3681.6,2.71621034]
[1753407856919,0.002,3681.7,3681.6,10.57751034]
[1753407857695,0.002,3681.9,3681.8,3.21936279]
[1753407857881,1e-08,3681.9,3681.8,17.4064849]
[1753407858087,1e-08,3681.9,3681.8,16.6961008]
[1753407859110,1e-08,3681.9,3681.8,13.13462231]
[1753407859479,1e-08,3681.9,3681.8,14.05052231]
[1753407860522,1e-08,3681.9,3681.8,8.25732231]
[1753407860826,1e-08,3681.9,3681.8,10.57636279]
[1753407862307,1e-08,3681.9,3681.8,11.00496279]
[1753407862925,1e-08,3681.9,3681.8,10.57636279]
[1753407863519,1e-08,3681.9,3681.8,11.00496279]
[1753407865423,1e-08,3681.9,3681.8,6.20336279]
[1753407865608,1e-08,3681.9,3681.8,7.0953201]
[1753407865813,1e-08,3681.9,3681.8,11.4663201]
[1753407866014,1e-08,3681.9,3681.8,6.6080201]
[1753407866214,1.02200001,3681.9,3681.8,10.22306279]
[1753407866612,1.49370001,3681.9,3681.8,10.22206279]
[1753407867015,1.49370001,3681.9,3681.8,7.506]
[1753407867832,1.49370001,3681.9,3681.8,0.136]
[1753407868035,0.55,3681.8,3681.5,0.136]
[1753407868234,0.55,3681.6,3680.1,0.56089345]
[1753407868545,2.71679832,3680.9,3680.2,5.49885169]
[1753407868842,2.71657928,3681.1,3680.2,5.49885169]
[1753407868843,0.55,3680.6,3680.2,4.37]
[1753407869050,0.55,3680.6,3680.5,0.136]
[1753407869406,0.55,3680.6,3680.3,0.136]
[1753407869613,0.55,3680.4,3680.1,4.507]
[1753407869939,0.55,3680.2,3680.1,0.137]
[1753407870144,0.55,3680.2,3680.1,4.507]
[1753407870350,1.4937,3680.2,3680.1,0.001]
[1753407871137,2.287,3680.2,3680.1,0.001]
[1753407871948,5.00424362,3680.2,3680.1,0.001]
[1753407873015,2.287,3680.2,3680.1,0.001]
[1753407875283,5.00424362,3680.2,3680.1,0.001]
[1753407875489,2.287,3680.2,3680.1,0.001]
[1753407875786,5.00424362,3680.2,3680.1,0.001]
[1753407875987,2.287,3680.2,3680.1,0.001]
[1753407876834,1.815,3680.2,3680.1,0.001]
[1753407877068,2.287,3680.2,3680.1,0.001]
[1753407878334,6.656,3680.2,3680.1,0.001]
[1753407880560,0.55,3680.2,3680.1,0.001]
[1753407880763,2.3061,3680.2,3680.1,0.001]
[1753407883177,2.4421,3680.2,3680.1,0.001]
[1753407884075,2.3061,3680.2,3680.1,0.001]
[1753407885089,1.8341,3680.2,3680.1,0.001]
[1753407885967,2.2845,3680.2,3680.1,0.001]
[1753407886487,2.4205,3680.2,3680.1,0.001]
[1753407886858,5.13774362,3680.2,3680.1,0.001]
[1753407887260,2.4205,3680.2,3680.1,0.001]
[1753407888182,1.4984,3680.2,3680.1,0.001]
[1753407888379,2.4226,3680.2,3680.1,0.001]
[1753407888782,6.7896,3680.2,3680.1,0.001]
[1753407890199,9.50684362,3680.2,3680.1,0.001]
[1753407890497,2.3908,3680.2,3680.1,0.001]
[1753407890686,6.7578,3680.2,3680.1,0.001]
[1753407891172,0.8233,3680.6,3680.1,0.001]
[1753407891374,0.136,3680.6,3680.1,3.30954554]
[1753407891577,0.9593,3680.9,3680.2,0.33095455]
[1753407891763,0.4504,3681.5,3680.8,2.71673367]
[1753407891961,0.136,3681.3,3680.8,0.136]
[1753407892185,4.8174,3681.5,3680.9,0.4553]
[1753407892388,4.8174,3681.5,3681.0,2.85259411]
[1753407892706,0.55,3681.4,3681.1,2.71652231]
[1753407893002,5.2912,3681.5,3681.1,2.71652231]
[1753407893297,0.55,3681.4,3681.1,2.71652231]
[1753407893598,0.136,3681.6,3681.1,2.71652231]
[1753407893801,0.55,3681.5,3681.1,2.71652231]
[1753407893996,0.55,3681.5,3681.1,3.17182231]
[1753407894698,0.55,3681.5,3681.2,0.4553]
[1753407895015,0.136,3681.6,3681.1,2.71657928]
[1753407895177,4.36600001,3681.9,3681.4,2.85235358]
[1753407895369,0.55,3681.8,3681.5,2.71627834]
[1753407895568,0.55,3681.8,3681.5,3.17157834]
[1753407895763,4.36600001,3681.9,3681.5,0.4553]
[1753407896205,0.55,3681.8,3681.4,0.136]
[1753407896391,0.55,3681.6,3681.0,0.5913]
[1753407896576,0.55,3681.6,3681.2,0.136]
[1753407896980,0.55,3681.4,3681.2,0.136]
[1753407897373,0.55,3681.7,3681.2,0.136]
[1753407897594,0.55,3681.7,3681.2,0.5913]
[1753407897806,0.55,3681.5,3681.2,0.136]
[1753407898706,0.55,3681.7,3681.2,0.136]
[1753407898912,0.136,3681.8,3681.2,0.136]
[1753407898913,0.55,3681.3,3681.2,0.136]
[1753407899075,1.0238,3681.3,3681.2,0.136]
[1753407899272,1.3171,3681.2,3680.1,0.5043]
[1753407899488,0.55,3680.8,3680.4,0.136]
[1753407899907,0.9242,3680.7,3680.4,0.136]
[1753407900103,0.55,3680.6,3680.4,0.136]
[1753407900423,0.4738,3680.7,3680.4,0.136]
[1753407900629,1.3334,3680.4,3680.1,0.137]
[1753407901126,0.55,3680.2,3680.1,0.137]
[1753407901804,4.19144362,3680.2,3680.1,0.001]
[1753407902003,4.19144362,3680.2,3679.4,0.001]
[1753407902004,4.03806056,3679.5,3679.4,0.001]
[1753407902241,8.53806056,3679.5,3679.4,0.001]
[1753407902396,9.46226056,3679.5,3679.4,0.001]
[1753407902892,12.46226056,3679.5,3679.4,0.001]
[1753407903242,12.46226056,3679.5,3679.4,1e-08]
[1753407903534,7.04033442,3679.4,3679.3,0.001]
[1753407903696,7.96453442,3679.4,3679.3,0.001]
[1753407904696,6.6107,3679.4,3679.3,0.001]
[1753407905033,5.6595,3679.9,3679.3,0.4563]
[1753407905334,0.8217,3679.9,3679.3,0.001]
[1753407905532,0.136,3679.7,3679.3,0.001]
[1753407905894,3.26783442,3679.4,3679.3,0.001]
[1753407906130,0.686,3679.4,3679.3,0.001]
[1753407906308,4.32803442,3679.4,3679.3,0.001]
[1753407906511,1.6102,3679.4,3679.3,0.001]
[1753407906898,4.32803442,3679.4,3679.3,0.001]
[1753407907096,1.6102,3679.4,3679.3,0.001]
[1753407908808,0.686,3679.4,3679.3,0.001]
[1753407909013,0.8217,3679.9,3679.3,0.4563]
[1753407909214,0.136,3680.0,3679.4,0.4553]
[1753407909417,0.136,3680.2,3679.7,0.136]
[1753407909738,0.136,3680.2,3679.8,0.4553]
[1753407909923,0.136,3680.2,3679.7,2.85361064]
[1753407909924,0.136,3680.2,3679.9,0.4553]
[1753407910115,4.499,3680.6,3680.1,0.136]
[1753407910440,0.55,3680.5,3680.1,0.136]
[1753407910745,0.4504,3680.5,3680.1,0.136]
[1753407911051,0.55,3680.5,3680.2,0.4553]
[1753407911255,0.136,3680.6,3680.2,0.4553]
[1753407911604,0.136,3680.6,3680.3,0.4553]
[1753407911799,0.136,3681.2,3680.5,0.136]
[1753407912011,5.1509,3681.3,3680.7,2.85285398]
[1753407912199,4.363,3681.3,3680.9,0.136]
[1753407912424,0.55,3681.2,3680.9,0.136]
[1753407912662,0.136,3681.4,3681.0,0.4553]
[1753407912947,0.136,3681.4,3680.9,0.6393]
[1753407913103,1e-08,3681.9,3681.2,0.136]
[1753407913304,1.0602,3681.8,3681.0,0.4553]
[1753407913535,0.4738,3681.8,3681.1,0.4553]
[1753407913709,0.136,3681.7,3681.2,0.136]
[1753407913908,0.136,3681.7,3681.2,0.5913]
[1753407914128,0.55,3681.6,3681.2,0.5913]
[1753407914727,0.55,3681.4,3680.8,4.362]
[1753407915042,0.686,3681.4,3680.9,0.136]
[1753407915244,1.1364,3681.4,3680.9,0.136]
[1753407915546,1.1364,3681.4,3680.9,0.6274]
[1753407915851,0.686,3681.4,3681.0,0.4914]
[1753407916032,1.04710001,3681.9,3681.0,0.4914]
[1753407916345,0.686,3681.7,3681.1,0.136]
[1753407916530,0.55,3681.7,3680.9,4.361]
[1753407916732,0.55,3681.3,3680.9,4.497]
[1753407917142,1.0471,3681.3,3680.9,4.497]
[1753407917308,0.55,3681.3,3681.0,0.4914]
[1753407917639,0.686,3681.7,3681.2,0.136]
[1753407917949,1e-08,3681.9,3681.6,2.71619638]
[1753407918246,1e-08,3681.9,3681.8,0.136]
[1753407918745,1e-08,3681.9,3681.8,0.6274]
[1753407919136,0.3855,3682.4,3681.8,3.34346279]
[1753407919345,0.95951286,3682.8,3682.6,3.21877276]
[1753407919512,0.7901,3684.0,3682.6,10.60592748]
[1753407919844,1.4232,3684.0,3682.6,11.67087276]
[1753407920385,1e-08,3682.7,3682.6,30.42399625]
[1753407920646,1e-08,3682.7,3682.6,33.12308801]
[1753407920806,0.4512,3684.6,3682.6,33.12308801]
[1753407920807,1e-08,3683.4,3683.3,6.21825669]
[1753407921013,1e-08,3683.4,3683.3,10.71325669]
[1753407921209,1e-08,3683.4,3683.3,11.67035669]
[1753407921406,1e-08,3683.4,3683.3,13.10889749]
[1753407922224,1e-08,3683.4,3683.3,21.13605949]
[1753407922424,1e-08,3683.4,3683.3,8.74989749]
[1753407922633,1e-08,3683.4,3683.3,0.5033]
[1753407922861,1e-08,3683.4,3683.3,4.358]
[1753407923041,1e-08,3683.4,3683.3,4.357]
[1753407923427,1e-08,3683.4,3683.2,7.068]
[1753407923636,1e-08,3683.4,3683.3,4.357]
[1753407924356,1e-08,3683.4,3683.3,4.8484]
[1753407924562,1e-08,3683.4,3683.3,9.50574]
[1753407924760,1e-08,3683.4,3683.3,12.22069669]
[1753407924977,1e-08,3683.4,3683.3,1.19164]
[1753407925128,1e-08,3683.4,3683.3,4.357]
[1753407925863,0.55,3683.3,3682.5,0.5033]
[1753407926029,3.26495779,3683.3,3682.5,0.5033]
[1753407926233,0.55,3683.1,3682.6,4.356]
[1753407926435,0.55,3682.9,3682.6,4.356]
[1753407926751,3.5076113,3683.4,3682.7,4.356]
[1753407926752,1.0471,3683.3,3682.7,4.356]
[1753407927063,0.55,3683.3,3682.7,5.06316041]
[1753407927228,0.815551,3687.3,3682.8,27.689503]
[1753407927541,1.0290944,3687.8,3685.6,5.33181069]
[1753407927727,1.0290944,3687.8,3685.8,3.0]
[1753407927728,0.4971,3687.3,3685.8,3.0]
[1753407928050,0.4971,3687.3,3685.9,0.4914]
[1753407928249,0.4971,3687.3,3686.0,3.0]
[1753407928437,0.4971,3687.3,3686.1,0.4914]
[1753407928764,0.4971,3687.3,3686.7,2.71242341]
[1753407928967,0.4971,3687.3,3686.5,4.477]
[1753407929263,0.4971,3687.3,3686.1,0.4914]
[1753407929264,0.8215,3687.1,3686.1,2.71289438]
[1753407929563,0.9483,3687.0,3686.2,7.18781287]
[1753407929787,0.9483,3687.0,3685.5,1.2539]
[1753407929788,0.9483,3687.0,3686.1,2.71284792]
[1753407929972,0.9483,3687.0,3686.3,4.474]
[1753407930347,0.4971,3686.9,3685.8,0.4914]
[1753407930546,0.4971,3686.9,3685.9,4.473]
[1753407930769,2.7123811,3686.8,3685.9,7.18603788]
[1753407930989,0.8215,3687.1,3686.0,4.471]
[1753407931157,0.4971,3687.0,3686.0,4.471]
[1753407931373,2.71237347,3686.9,3686.0,7.68020781]
[1753407931547,0.8215,3687.1,3686.1,0.4914]
[1753407931749,0.4971,3688.1,3686.7,2.71245277]
[1753407931950,0.4971,3688.1,3686.1,0.9947]
[1753407931951,2.7117128,3687.8,3686.8,3.4914]